bitfinex/quotes_SOLUSD_20230111
["timestamp","ask_amount","ask_price","bid_price","bid_amount"]
[1673468267677,20.0,15.991,15.978,17.0]
[1673468267905,20.0,15.991,15.979,66.95]
[1673468268113,20.0,15.991,15.98,17.0]
[1673468268637,46.91,15.99,15.979,20.0]
[1673468268832,65.83,15.99,15.975,20.0]
[1673468269043,20.0,15.989,15.972,20.0]
[1673468269256,65.84,15.988,15.973,46.96]
[1673468269469,48.84,15.988,15.974,20.0]
[1673468269791,48.84,15.988,15.975,46.96]
[1673468270005,20.0,15.987,15.976,20.0]
[1673468270736,20.0,15.987,15.977,17.0]
[1673468270950,20.0,15.987,15.978,20.0]
[1673468272311,20.0,15.987,15.976,20.0]
[1673468273359,1.92,15.986,15.976,20.0]
[1673468273569,1.92,15.986,15.974,18.19085186]
[1673468273783,18.92,15.986,15.975,20.0]
[1673468274096,20.0,15.985,15.975,20.0]
[1673468274305,1.92,15.984,15.972,20.0]
[1673468274527,1.92,15.984,15.973,46.96]
[1673468274727,1.92,15.984,15.974,20.0]
[1673468275359,1.92,15.984,15.972,20.0]
[1673468275578,120.9606,15.984,15.973,17.0]
[1673468275781,20.0,15.983,15.972,17.0]
[1673468277775,46.91,15.99,15.973,0.96]
[1673468277992,20.0,15.99,15.974,20.0]
[1673468278213,20.0,15.99,15.975,65.88]
[1673468278440,20.0,15.99,15.975,84.07085186]
[1673468278740,20.0,15.99,15.976,18.19085186]
[1673468278950,20.0,15.99,15.977,65.87]
[1673468279158,20.0,15.99,15.978,20.0]
[1673468279369,118.9353,15.991,15.979,48.87]
[1673468279563,118.9353,15.991,15.979,65.87]
[1673468279776,118.9353,15.991,15.98,18.19085186]
[1673468279987,20.0,15.99,15.981,46.94]
[1673468280199,20.0,15.99,15.98,46.94]
[1673468281038,20.0,15.99,15.979,63.95]
[1673468283040,114.9691,15.992,15.979,82.14085186]
[1673468283251,114.9691,15.992,15.981,20.0]
[1673468283459,114.9691,15.992,15.982,65.86]
[1673468284948,114.9691,15.992,15.982,46.94]
[1673468285359,114.9691,15.992,15.981,46.94]
[1673468286428,114.9691,15.992,15.982,17.0]
[1673468286636,114.9691,15.992,15.983,66.93]
[1673468286850,20.0,15.997,15.984,18.92]
[1673468287156,46.89,15.999,15.985,66.93]
[1673468287370,181.7623,16.0,15.986,18.92]
[1673468287558,181.7623,16.0,15.987,66.92]
[1673468287977,181.7623,16.0,15.987,20.0]
[1673468288213,181.7623,16.0,15.988,17.0]
[1673468288523,181.7623,16.0,15.989,20.0]
[1673468288524,114.8823,16.0,15.989,20.0]
[1673468288740,114.8823,16.0,15.99,44.42]
[1673468288945,114.8823,16.0,15.991,46.91]
[1673468289264,114.8823,16.0,15.992,36.15085186]
[1673468289452,66.87,16.006,15.993,46.9]
[1673468289662,66.86,16.009,15.994,38.92]
[1673468289881,66.86,16.009,15.995,66.9]
[1673468290096,66.86,16.009,15.996,38.92]
[1673468290296,66.86,16.009,15.996,57.11085186]
[1673468290297,20.0,16.009,15.996,57.11085186]
[1673468290506,46.86,16.01,15.997,93.00123421]
[1673468290719,20.0,16.016,16.0,26.88]
[1673468290924,113.0182,16.028,16.001,84.84]
[1673468291147,20.0,16.023,16.01,26.59]
[1673468291342,20.0,16.023,16.011,65.77]
[1673468291987,20.0,16.023,16.011,82.04085186]
[1673468292309,20.0,16.023,16.011,63.85]
[1673468295867,20.0,16.023,16.012,1.92]
[1673468296079,20.0,16.024,16.012,1.92]
[1673468296300,20.0,16.024,16.013,46.85]
[1673468296507,20.0,16.024,16.014,18.92]
[1673468297449,20.0,16.024,16.014,17.96]
[1673468298282,0.96,16.023,16.011,46.85]
[1673468298497,20.0,16.022,16.003,46.88]
[1673468298712,20.0,16.02,16.004,20.0]
[1673468298922,0.96,16.019,16.005,46.87]
[1673468299133,0.96,16.019,16.006,20.0]
[1673468299346,0.96,16.019,16.007,46.86]
[1673468299553,0.96,16.019,16.008,20.0]
[1673468300187,0.96,16.019,16.005,20.0]
[1673468300507,0.96,16.019,16.006,46.87]
[1673468300717,243.1172,16.02,16.007,37.96]
[1673468301025,0.96,16.019,16.008,46.86]
[1673468301241,1.92,16.019,16.009,20.0]
[1673468303455,0.96,16.018,16.009,20.0]
[1673468303643,20.96,16.018,16.009,20.0]
[1673468303845,0.96,16.017,16.009,20.0]
[1673468304056,0.96,16.017,16.006,18.19085186]
[1673468304268,0.96,16.017,16.007,66.86]
[1673468304584,40.96,16.017,16.004,46.87]
[1673468304797,47.8,16.016,16.0,46.88]
[1673468305009,20.0,16.014,15.998,18.19085186]
[1673468305323,65.77,16.013,15.999,46.89]
[1673468305532,20.0,16.012,15.997,18.19085186]
[1673468305742,109.4489,16.012,16.0,18.19085186]
[1673468306076,46.84,16.016,16.001,65.8]
[1673468306391,109.4489,16.016,16.002,18.19085186]
[1673468306586,109.4489,16.016,16.003,46.88]
[1673468306791,109.4489,16.016,16.004,1.92]
[1673468307003,109.4489,16.016,16.004,18.92]
[1673468307212,109.4489,16.016,16.004,37.11085186]
[1673468308058,20.0,16.015,16.004,37.11085186]
[1673468308274,109.4489,16.016,16.004,37.11085186]
[1673468308485,20.0,16.015,16.004,37.11085186]
[1673468309528,20.0,16.015,16.004,18.92]
[1673468309748,20.0,16.015,16.004,17.0]
[1673468310365,1296.83,16.019,16.005,1.92]
[1673468310591,20.0,16.018,16.006,46.87]
[1673468310921,20.0,16.018,16.007,37.11085186]
[1673468311113,20.0,16.018,16.008,66.86]
[1673468311323,20.0,16.018,16.009,17.0]
[1673468311536,20.0,16.018,16.01,46.86]
[1673468312697,1250.0,16.019,16.01,46.86]
[1673468313020,1250.0,16.019,16.011,17.0]
[1673468313235,1250.0,16.019,16.011,35.19085186]
[1673468313424,20.0,16.018,16.011,35.19085186]
[1673468313964,1250.0,16.019,16.011,35.19085186]
[1673468314166,1250.0,16.019,16.012,66.96085186]
[1673468314373,20.0,16.025,16.012,66.96085186]
[1673468314588,20.0,16.025,16.013,17.0]
[1673468314791,20.0,16.025,16.014,1.92]
[1673468316060,17.0,16.024,16.009,46.86]
[1673468316387,20.0,16.022,16.008,20.0]
[1673468316599,1.92,16.021,16.008,66.86]
[1673468316804,1.92,16.021,16.008,38.19085186]
[1673468317016,46.83,16.02,16.008,20.0]
[1673468317231,20.0,16.018,16.004,20.0]
[1673468317545,20.0,16.018,16.005,46.87]
[1673468317742,20.0,16.018,16.006,20.0]
[1673468318163,20.0,16.018,16.004,20.0]
[1673468318368,20.0,16.018,16.005,64.83]
[1673468318588,20.0,16.018,16.006,20.0]
[1673468318789,1.92,16.017,16.006,20.0]
[1673468318994,20.0,16.016,16.006,20.0]
[1673468319198,18.92,16.015,16.002,20.0]
[1673468319431,5.685,16.014,16.003,46.88]
[1673468319624,1.92,16.013,16.004,20.0]
[1673468319834,18.92,16.013,16.004,20.0]
[1673468320263,18.92,16.013,16.001,46.88]
[1673468320482,20.0,16.012,16.0,46.88]
[1673468320896,20.0,16.012,16.001,17.0]
[1673468325431,20.0,16.012,16.002,0.96]
[1673468327339,5.685,16.014,16.003,19.15085186]
[1673468327548,20.0,16.016,16.004,37.96]
[1673468327858,20.0,16.016,16.005,47.83]
[1673468328080,20.0,16.016,16.006,17.96]
[1673468328265,20.0,16.016,16.007,0.96]
[1673468328476,20.0,16.016,16.008,0.96]
[1673468328698,20.0,16.016,16.006,37.96]
[1673468328905,20.0,16.016,16.007,46.86]
[1673468329250,20.0,16.016,16.008,37.0]
[1673468329437,20.0,16.016,16.008,20.0]
[1673468330049,20.0,16.016,16.007,20.0]
[1673468333125,20.0,16.016,16.002,20.0]
[1673468333435,20.0,16.016,16.003,65.8]
[1673468333641,20.0,16.016,16.004,20.0]
[1673468333860,20.0,16.016,16.005,63.87]
[1673468334282,20.0,16.016,16.006,20.0]
[1673468335237,20.0,16.016,16.005,17.0]
[1673468335428,65.76,16.015,15.996,46.9]
[1673468335638,65.76,16.015,15.994,46.9]
[1673468335639,20.0,16.014,15.994,46.9]
[1673468335857,65.77,16.013,15.994,46.9]
[1673468336168,20.0,16.012,15.994,46.9]
[1673468336375,128.0895,16.012,15.993,46.9]
[1673468336597,20.0,16.01,15.993,46.9]
[1673468336800,20.0,16.01,15.994,38.92]
[1673468337010,20.0,16.01,15.995,46.9]
[1673468337210,20.0,16.01,15.996,38.92]
[1673468337426,20.0,16.01,15.997,46.89]
[1673468337638,20.0,16.01,15.998,38.92]
[1673468341861,46.85,16.013,15.998,38.92]
[1673468342065,116.2748,16.018,16.001,20.0]
[1673468342390,20.0,16.017,16.002,85.8]
[1673468342913,20.0,16.017,16.003,20.0]
[1673468343094,20.0,16.017,16.004,85.79]
[1673468343311,46.81,16.024,16.01,26.46]
[1673468343625,106.64,16.04,16.01,26.46]
[1673468343626,46.8,16.028,16.011,67.81]
[1673468343837,161.8432,16.031,16.012,17.96]
[1673468344061,161.8432,16.031,16.013,67.81]
[1673468344291,20.0,16.028,16.014,17.96]
[1673468344474,20.0,16.028,16.015,47.8]
[1673468344804,20.0,16.028,16.016,37.96]
[1673468345022,20.0,16.028,16.017,47.79]
[1673468345333,20.0,16.028,16.018,37.96]
[1673468345940,20.0,16.028,16.019,0.96]
[1673468346173,20.0,16.028,16.02,0.96]
[1673468349005,20.0,16.028,16.02,17.96]
[1673468349534,20.0,16.028,16.021,0.96]
[1673468349743,20.0,16.03,16.021,0.96]
[1673468349932,20.0,16.028,16.021,0.96]
[1673468350143,20.0,16.028,16.019,46.83]
[1673468350359,20.0,16.028,16.018,20.0]
[1673468350678,20.0,16.028,16.015,20.0]
[1673468350890,20.0,16.028,16.016,46.84]
[1673468351205,20.0,16.028,16.017,20.0]
[1673468351423,20.0,16.028,16.018,46.83]
[1673468351612,20.0,16.028,16.019,20.0]
[1673468351830,20.0,16.028,16.02,18.92]
[1673468356913,20.0,16.028,16.019,20.0]
[1673468357119,20.0,16.028,16.017,20.0]
[1673468357332,20.0,16.028,16.018,46.83]
[1673468357520,20.0,16.028,16.019,20.0]
[1673468358158,20.0,16.03,16.02,17.0]
[1673468358489,20.0,16.028,16.021,1.92]
[1673468359515,46.79,16.033,16.021,1.92]
[1673468359726,66.78,16.037,16.022,65.01085186]
[1673468359954,20.0,16.037,16.023,38.92]
[1673468360154,20.0,16.037,16.024,46.81]
[1673468360360,20.0,16.037,16.025,38.92]
[1673468360777,20.0,16.037,16.025,57.11085186]
[1673468361526,20.0,16.037,16.025,56.15085186]
[1673468361720,20.0,16.037,16.026,0.96]
[1673468361934,20.0,16.037,16.027,0.96]
[1673468363108,20.0,16.037,16.02,26.71]
[1673468363310,48.7,16.035,16.011,135.8634]
[1673468363527,20.0,16.034,16.014,18.19085186]
[1673468363719,46.79,16.033,16.02,17.7]
[1673468363932,20.0,16.034,16.02,17.7]
[1673468364792,20.0,16.034,16.021,18.92]
[1673468365524,20.0,16.034,16.02,17.7]
[1673468365837,65.71,16.033,16.014,46.84]
[1673468366030,20.0,16.032,16.013,46.85]
[1673468366241,65.71,16.031,16.015,20.0]
[1673468366465,176.3277,16.031,16.014,20.0]
[1673468366657,20.0,16.03,16.012,20.0]
[1673468366867,20.0,16.028,16.013,46.85]
[1673468367308,20.0,16.028,16.014,20.0]
[1673468367501,20.0,16.028,16.015,46.84]
[1673468367719,20.0,16.028,16.016,20.0]
[1673468367938,161.7205,16.029,16.016,20.0]
[1673468368152,114.9205,16.029,16.013,20.0]
[1673468368360,114.9205,16.029,16.014,46.84]
[1673468368674,114.9205,16.029,16.015,20.0]
[1673468368883,114.9205,16.029,16.016,18.92]
[1673468369196,114.9205,16.029,16.017,20.0]
[1673468369411,20.0,16.028,16.018,18.92]
[1673468369617,114.9205,16.029,16.02,17.7]
[1673468369931,114.9205,16.029,16.021,18.92]
[1673468371314,46.79,16.033,16.021,18.92]
[1673468371627,158.6875,16.038,16.022,66.82]
[1673468371836,158.6875,16.038,16.023,18.92]
[1673468371837,20.0,16.037,16.023,18.92]
[1673468372049,20.0,16.037,16.024,46.81]
[1673468372238,20.0,16.037,16.025,20.0]
[1673468372447,20.0,16.037,16.026,17.96]
[1673468372659,20.0,16.037,16.027,20.0]
[1673468372967,20.0,16.037,16.028,17.0]
[1673468373181,20.0,16.037,16.029,20.0]
[1673468373398,20.0,16.037,16.03,17.0]
[1673468375289,20.0,16.037,16.029,20.0]
[1673468375509,20.0,16.037,16.03,18.92]
[1673468375710,20.0,16.037,16.026,0.96]
[1673468375924,20.0,16.037,16.024,20.0]
[1673468376130,20.0,16.037,16.023,20.0]
[1673468376357,20.0,16.037,16.022,20.0]
[1673468376776,20.0,16.035,16.022,20.0]
[1673468377805,1.92,16.034,16.021,46.82]
[1673468378016,48.7,16.034,16.017,46.83]
[1673468378227,20.0,16.033,16.012,46.85]
[1673468378458,46.79,16.032,16.012,46.85]
[1673468378764,20.0,16.031,16.013,20.0]
[1673468378983,129.7601,16.031,16.014,46.84]
[1673468379295,46.8,16.03,16.015,18.92]
[1673468379483,20.0,16.029,16.016,46.84]
[1673468379697,46.8,16.03,16.017,18.92]
[1673468379912,129.7601,16.031,16.018,46.83]
[1673468380121,20.0,16.033,16.019,18.92]
[1673468380333,20.0,16.033,16.02,17.7]
[1673468380334,46.79,16.032,16.02,17.7]
[1673468380543,20.0,16.033,16.021,18.92]
[1673468381923,1250.0,16.048,16.023,20.0]
[1673468382238,132.1726,16.045,16.03,17.7]
[1673468382558,20.0,16.042,16.031,17.0]
[1673468386556,20.0,16.042,16.032,1.92]
[1673468390833,20.0,16.043,16.032,1.92]
[1673468391049,20.0,16.043,16.033,46.79]
[1673468391271,20.0,16.045,16.034,38.92]
[1673468393905,129.1475,16.047,16.034,38.92]
[1673468394118,129.1475,16.047,16.034,93.35770802]
[1673468394305,109.1475,16.047,16.034,93.35770802]
[1673468394516,109.1475,16.047,16.036,20.0]
[1673468394741,109.1475,16.047,16.037,85.7]
[1673468394948,109.1475,16.047,16.037,194.61220058]
[1673468395144,109.1475,16.047,16.038,58.05188135]
[1673468395571,20.0,16.046,16.039,20.0]
[1673468396309,46.74,16.05,16.039,20.0]
[1673468396517,46.73,16.054,16.04,17.67]
[1673468396724,46.73,16.054,16.041,18.92]
[1673468397177,46.73,16.054,16.041,76.97188135]
[1673468397605,46.73,16.054,16.042,40.0]
[1673468397823,163.8333,16.056,16.043,18.92]
[1673468398018,161.8333,16.056,16.044,20.0]
[1673468398225,20.0,16.055,16.045,18.92]
[1673468398437,20.0,16.055,16.046,20.0]
[1673468400748,115.1133,16.056,16.046,20.0]
[1673468400959,46.7,16.063,16.05,17.7]
[1673468401172,20.0,16.066,16.047,18.92]
[1673468401173,288.22271075,16.088,16.06,83.36114375]
[1673468401397,289.13242187,16.089,16.061,67.67]
[1673468401791,17.74,16.09,16.062,17.96]
[1673468401792,280.7125973,16.087,16.062,17.96]
[1673468402003,17.7,16.08,16.063,20.96]
[1673468402210,157.5201,16.079,16.064,17.96]
[1673468402436,157.5201,16.079,16.065,20.96]
[1673468402643,20.0,16.078,16.065,20.0]
[1673468402966,46.66,16.077,16.055,46.72]
[1673468403169,46.66,16.077,16.056,37.96]
[1673468403372,46.66,16.077,16.062,18.12493681]
[1673468403583,20.0,16.076,16.061,46.71]
[1673468403805,46.67,16.075,16.062,18.92]
[1673468404008,20.0,16.074,16.062,18.92]
[1673468404223,20.0,16.074,16.062,1.92]
[1673468404444,128.0753,16.074,16.062,1.92]
[1673468404839,128.0753,16.074,16.06,46.71]
[1673468404840,0.96,16.073,16.06,46.71]
[1673468405049,46.67,16.073,16.057,46.72]
[1673468405262,20.0,16.072,16.058,38.12493681]
[1673468405492,20.0,16.072,16.058,20.0]
[1673468405701,62.25,16.085,16.06,132.05]
[1673468405907,62.25,16.085,16.07,131.81]
[1673468406448,62.25,16.085,16.071,18.12493681]
[1673468406626,46.64,16.084,16.072,0.96]
[1673468406839,46.64,16.084,16.073,0.96]
[1673468407060,62.25,16.085,16.074,0.96]
[1673468407275,62.25,16.085,16.075,0.96]
[1673468407478,20.0,16.084,16.076,0.96]
[1673468407803,66.64,16.084,16.076,0.96]
[1673468408016,66.64,16.084,16.077,0.96]
[1673468408329,20.0,16.084,16.077,0.96]
[1673468408542,62.25,16.087,16.077,0.96]
[1673468408728,46.63,16.087,16.078,0.96]
[1673468408939,20.0,16.084,16.079,0.96]
[1673468409375,20.0,16.084,16.078,0.96]
[1673468410317,20.0,16.086,16.079,0.96]
[1673468410520,46.64,16.085,16.072,18.12493681]
[1673468410726,46.64,16.085,16.07,26.56]
[1673468410950,20.0,16.088,16.06,46.4]
[1673468410951,20.0,16.088,16.072,18.12493681]
[1673468411161,20.0,16.088,16.08,26.32]
[1673468411772,20.0,16.094,16.08,26.32]
[1673468411987,46.61,16.093,16.081,18.92]
[1673468412197,46.61,16.093,16.081,17.0]
[1673468412509,72.98,16.09,16.061,106.12010037]
[1673468412720,92.98,16.09,16.07,26.32]
[1673468412951,20.0,16.089,16.07,26.32]
[1673468413159,20.0,16.087,16.07,26.32]
[1673468413367,46.63,16.086,16.07,26.32]
[1673468413776,20.0,16.085,16.07,26.32]
[1673468414001,20.0,16.083,16.07,26.32]
[1673468414202,46.65,16.082,16.071,18.92]
[1673468414401,20.0,16.081,16.071,18.92]
[1673468414611,20.0,16.081,16.06,132.0]
[1673468414836,46.65,16.08,16.06,131.91]
[1673468415241,132.8893,16.083,16.061,64.8349367]
[1673468415456,132.8893,16.083,16.07,26.1]
[1673468415893,132.8893,16.083,16.071,1.92]
[1673468416309,132.8893,16.083,16.071,17.0]
[1673468418101,46.64,16.084,16.071,17.0]
[1673468418300,46.62,16.091,16.072,84.7949367]
[1673468418520,46.62,16.091,16.073,38.92]
[1673468418726,46.62,16.091,16.074,66.67]
[1673468418915,46.62,16.091,16.075,1.92]
[1673468419129,46.62,16.091,16.075,18.92]
[1673468419376,20.0,16.087,16.075,18.92]
[1673468419576,20.0,16.087,16.076,20.0]
[1673468419905,46.62,16.091,16.077,18.92]
[1673468420102,46.62,16.091,16.077,65.58]
[1673468420314,46.62,16.091,16.077,18.92]
[1673468420748,20.0,16.09,16.077,18.92]
[1673468420964,20.0,16.09,16.078,46.66]
[1673468421150,20.0,16.09,16.079,18.92]
[1673468421360,20.0,16.09,16.079,17.0]
[1673468422528,20.0,16.09,16.075,46.67]
[1673468422744,20.0,16.09,16.076,20.0]
[1673468423148,48.54,16.089,16.073,20.0]
[1673468423478,20.0,16.088,16.073,20.0]
[1673468423691,20.0,16.086,16.072,20.0]
[1673468423899,20.0,16.086,16.073,46.67]
[1673468424095,20.0,16.086,16.074,20.0]
[1673468424306,276.87734099,16.13,16.097,100.6951247]
[1673468424537,276.87734099,16.13,16.11,26.47]
[1673468424740,41.98188843,16.129,16.105,31.82138256]
[1673468424931,26.36,16.12,16.108,31.82138256]
[1673468425155,46.54,16.119,16.103,31.82138256]
[1673468425348,228.8548,16.119,16.109,31.82138256]
[1673468425560,20.0,16.118,16.109,31.82138256]
[1673468426000,20.0,16.118,16.11,31.82138256]
[1673468426208,20.0,16.118,16.103,57.486139]
[1673468426417,46.54,16.117,16.103,57.486139]
[1673468426629,20.0,16.116,16.103,57.486139]
[1673468426843,46.55,16.115,16.103,57.486139]
[1673468427035,26.36,16.11,16.103,57.486139]
[1673468427247,20.0,16.108,16.103,0.006139]
[1673468427473,46.57,16.107,16.103,0.006139]
[1673468427686,17.0,16.106,16.1,0.01126095]
[1673468428005,20.0,16.104,16.1,0.01126095]
[1673468428210,64.54,16.103,16.1,0.01126095]
[1673468428404,46.58,16.103,16.1,0.01126095]
[1673468428725,38.92,16.102,16.1,0.01126095]
[1673468428940,46.59,16.101,16.1,0.01126095]
[1673468429251,105.51,16.101,16.1,0.01126095]
[1673468429664,105.51,16.101,16.097,0.0051247]
[1673468429874,38.92,16.1,16.09,143.85017814]
[1673468430111,66.6,16.099,16.09,143.85017814]
[1673468430420,20.0,16.097,16.09,143.85017814]
[1673468430609,46.6,16.096,16.09,143.85017814]
[1673468430828,20.0,16.095,16.083,105.9033359]
[1673468431026,46.61,16.094,16.083,105.9033359]
[1673468431237,20.0,16.093,16.083,105.9033359]
[1673468431558,46.62,16.092,16.083,105.9033359]
[1673468432086,20.0,16.091,16.083,105.9033359]
[1673468432512,46.62,16.09,16.083,105.9033359]
[1673468432725,46.62,16.09,16.087,63.16793433]
[1673468432921,20.0,16.089,16.083,105.9033359]
[1673468433671,20.0,16.089,16.077,107.41846056]
[1673468434400,17.96,16.088,16.075,100.32619581]
[1673468434615,65.55,16.088,16.073,106.05733968]
[1673468435019,46.63,16.088,16.074,3.03221249]
[1673468435230,46.62,16.089,16.075,100.32619581]
[1673468435454,46.62,16.09,16.075,100.32619581]
[1673468435646,20.0,16.091,16.076,65.58]
[1673468435854,20.0,16.091,16.077,107.41846056]
[1673468436069,20.0,16.091,16.078,47.62]
[1673468436296,20.0,16.091,16.079,17.96]
[1673468436699,20.0,16.091,16.078,47.62]
[1673468436909,66.62,16.091,16.079,104.44856988]
[1673468437349,66.62,16.091,16.077,154.07846056]
[1673468437536,66.62,16.091,16.061,20.0]
[1673468437537,26.36,16.09,16.073,106.05733968]
[1673468437749,64.58,16.089,16.074,3.03221249]
[1673468437984,40.0,16.088,16.073,106.05733968]
[1673468438296,47.59,16.087,16.065,149.70280668]
[1673468438614,47.59,16.087,16.066,23.03372246]
[1673468438615,20.0,16.086,16.066,23.03372246]
[1673468438807,46.64,16.085,16.067,46.69]
[1673468439021,20.0,16.084,16.067,49.72353363]
[1673468439222,46.64,16.083,16.068,3.03334482]
[1673468439538,20.0,16.086,16.069,155.47969329]
[1673468439758,20.0,16.086,16.07,3.03296729]
[1673468440079,46.64,16.085,16.071,46.68]
[1673468440296,46.64,16.085,16.072,3.03258984]
[1673468440489,46.64,16.085,16.07,49.71240115]
[1673468440701,46.64,16.085,16.071,1.92]
[1673468440907,46.63,16.087,16.072,104.75047644]
[1673468441116,46.63,16.087,16.073,4.95240115]
[1673468441343,46.63,16.087,16.074,20.03221249]
[1673468441548,46.63,16.087,16.075,103.06357958]
[1673468441756,17.96,16.086,16.075,103.06357958]
[1673468441981,20.0,16.084,16.072,104.75047644]
[1673468442176,46.64,16.083,16.072,107.78306628]
[1673468442507,66.64,16.084,16.073,3.03240115]
[1673468442726,18.92,16.083,16.066,102.86503181]
[1673468442907,66.65,16.082,16.064,109.32692826]
[1673468443118,66.65,16.082,16.066,102.86503181]
[1673468443327,17.0,16.081,16.067,46.69]
[1673468443561,20.0,16.08,16.068,106.35820253]
[1673468443756,20.0,16.08,16.064,109.32692826]
[1673468444084,20.0,16.08,16.065,46.69]
[1673468444295,20.0,16.08,16.067,102.07997687]
[1673468444512,20.0,16.08,16.069,108.79969329]
[1673468444695,20.0,16.08,16.067,102.07997687]
[1673468444906,20.0,16.08,16.068,17.96]
[1673468445117,20.0,16.08,16.068,64.65]
[1673468445551,20.0,16.08,16.069,13.38352311]
[1673468446695,20.0,16.08,16.07,105.18264286]
[1673468446900,85.57,16.079,16.063,100.86018075]
[1673468447111,50.78303606,16.078,16.059,102.22769335]
[1673468447325,46.66,16.078,16.062,20.0]
[1673468447636,46.66,16.078,16.065,103.01280668]
[1673468447846,20.0,16.076,16.063,119.42402419]
[1673468448073,28.80459141,16.075,16.063,107.46932593]
[1673468448282,124.92006662,16.075,16.063,107.46932593]
[1673468448474,28.80459141,16.074,16.063,107.46932593]
[1673468448686,48.80459141,16.073,16.063,107.46932593]
[1673468449949,48.80459141,16.073,16.059,104.6780538]
[1673468450170,1.92,16.072,16.058,106.40562253]
[1673468450494,1.92,16.072,16.059,46.71]
[1673468450684,21.92,16.072,16.059,46.71]
[1673468451114,68.59,16.072,16.059,46.71]
[1673468451330,17.0,16.071,16.058,106.40562253]
[1673468451643,20.0,16.07,16.058,106.40562253]
[1673468451842,66.67,16.072,16.058,106.40562253]
[1673468452054,66.67,16.072,16.059,46.71]
[1673468452263,0.96,16.071,16.059,46.71]
[1673468452477,1.92,16.071,16.059,46.71]
[1673468452689,18.92,16.071,16.058,106.40562253]
[1673468452902,18.92,16.071,16.059,46.71]
[1673468453336,20.0,16.07,16.06,104.99251922]
[1673468453663,20.0,16.07,16.057,109.57945508]
[1673468453862,1.92,16.069,16.057,109.57945508]
[1673468454079,47.94955869,16.073,16.061,104.51071917]
[1673468454282,28.80459141,16.073,16.063,108.35168221]
[1673468454497,28.80459141,16.073,16.064,46.7]
[1673468454721,1278.80459141,16.073,16.064,46.7]
[1673468455029,20.0,16.072,16.064,46.7]
[1673468455639,20.0,16.072,16.063,108.35168221]
[1673468455858,26.36,16.07,16.057,109.56358252]
[1673468456073,66.68,16.069,16.056,109.25686299]